[Event "FIDE WCCC U10 2018"]
[Site "Santiago de Compostela"]
[Date "2018.11.11"]
[Round "7"]
[White "Materia, Marco"]
[Black "Li, Shanglin"]
[Result "1/2-1/2"]
[ECO "B22"]
[WhiteElo "2035"]
[BlackElo "1659"]
[Annotator "NA RC"]
[PlyCount "96"]
[EventDate "2018.11.04"]
[EventType "swiss"]
[EventCountry "ESP"]
[SourceTitle "playchess.com"]
[Source "ChessBase"]
[SourceQuality "1"]
[TimeControl "40/5400+30:1800+30"]

1. e4 {[%emt 0:00:00]} c5 {[%emt 0:00:03]} 2. c3 {[%emt 0:00:00]} d5 {[%emt 0:00:38]} 3. exd5 {[%emt 0:00:00]} Qxd5 {[%emt 0:00:35]} 4. d4 {[%emt 0:00:17]} cxd4 {[%emt 0:00:25]} 5. cxd4 {[%emt 0:00:11]} Nc6 {[%emt 0:00:18]} 6. Nf3 {[%emt 0:00:15]} e6 {[%emt 0:00:17]} 7. Nc3 {[%emt 0:00:56]} Bb4 {[%emt 0:01:19]} 8. Be2 {[%emt 0:01:30]} Nf6 {[%emt 0:00:39]} 9. O-O {[%emt 0:01:05]} Qd8 {[%emt 0:00:29]} 10. a3 Be7 {[%emt 0:00:46]} 11. Re1 {[%emt 0:05:12]} O-O {[%emt 0:00:34]} 12. Bd3 {[%emt 0:01:06]} b6 {[%emt 0:06:13]} 13. Bc2 {[%emt 0:07:01]} Ba6 {[%emt 0:10:06]} 14. Bg5 {[%emt 0:05:08] LiveBook: 71 Games} Rc8 {[%emt 0:03:28]} 15. Bb1 {[%emt 0:08:57] D42: Queen's Gambit Declined: Semi-Tarrasch: 5 cxd5 Nxd5 6 e3 Nc6 7 Bd3} (15. Rc1 h6 16. Bh4 Nd5 17. Bxe7 Ncxe7 18. Bb1 Nf6 19. Ne5 Qd6 20. Qa4 b5 21. Qa5 Rb8 22. Ba2 b4 23. axb4 Rxb4 24. Nxf7 Rxf7 25. Bxe6 {1-0 (63) Sjugirov,S (2650)-Sorokin,A (2486) Sochi 2017}) 15... Re8 $146 {[%emt 0:04:26]} ({Predecessor:} 15... h6 16. Be3 Qd6 17. Qc2 Rfd8 18. b4 Bb7 19. Ne4 Qd5 20. Nxf6+ Bxf6 21. Qh7+ Kf8 22. Be4 Qd6 {½-½ (71) Levushkina,E (2278)-Drexel,M (2264) Bayern 2007}) 16. Qa4 {[%emt 0:05:29]} Bb7 {[%emt 0:03:11]} 17. Ba2 {[%emt 0:06:32]} Nd5 {[%emt 0:15:00]} 18. Bd2 {[%emt 0:07:01]} Nxc3 {[%emt 0:04:49]} 19. bxc3 {[%emt 0:01:16]} Bf6 {[%emt 0:00:34]} 20. Rad1 {[%emt 0:02:58]} Qc7 {[%emt 0:01:05]} 21. Bg5 {[%emt 0:06:23]} Bxg5 {[%emt 0:02:26]} 22. Nxg5 {[%emt 0:00:11]} Qf4 {[%emt 0:00:37]} 23. Nh3 {[%emt 0:04:46]} Qd6 {[%emt 0:02:57]} 24. Re3 {[%emt 0:03:01]} (24. g3 $11) 24... Ne7 {[%emt 0:04:27]} 25. c4 {[%emt 0:01:19]} Nf5 {[%emt 0:01:39]} 26. Red3 {[%emt 0:01:39]} Qc6 {[%emt 0:00:34]} 27. Qxc6 {[%emt 0:00:09]} Bxc6 {[%emt 0:00:01]} 28. Nf4 {[%emt 0:02:15]} Ba4 {[%emt 0:01:21]} 29. Re1 {[%emt 0:03:01] [#]} Nd6 {[%emt 0:05:53]} ({Black should try} 29... Nxd4 $1 $17 {[%mdl 512]} 30. Rxd4 e5) 30. Rc1 {[%emt 0:01:37]} Rc7 {[%emt 0:03:21]} 31. d5 {[%emt 0:01:32]} e5 {[%emt 0:01:23]} 32. Ne2 {[%emt 0:01:44]} Rec8 {[%emt 0:00:11]} 33. Rdc3 {[%emt 0:00:16]} Rc5 {[%emt 0:00:07]} 34. h3 {[%emt 0:01:36]} Bd7 {[%emt 0:00:22]} 35. f3 {[%emt 0:01:46]} R8c7 {[%emt 0:00:40]} 36. f4 {[%emt 0:00:40]} e4 {[%emt 0:00:42]} 37. Kf2 {[%emt 0:00:41]} f5 {[%emt 0:01:52]} 38. Ke3 {[%emt 0:00:36]} Kf7 {[%emt 0:00:13]} 39. Kd2 {[%emt 0:01:52]} Kf6 {[%emt 0:00:27]} 40. g3 {[%emt 0:00:00]} Ra5 {[%emt 0:00:00]} 41. Nd4 {[%emt 0:01:16]} Ra4 {[%emt 0:01:52]} 42. Ke3 {[%emt 0:02:15]} Rc5 {[%emt 0:00:44]} 43. Ke2 {[%emt 0:01:40]} Bc8 {[%emt 0:02:58]} 44. h4 {[%emt 0:00:41]} (44. Ke1 $17 {was called for.}) 44... Nb5 $18 {[%emt 0:03:14]} (44... Ba6 $19 {and life is good for Black.} 45. Kf2 Bxc4 46. Bxc4 Rcxc4 47. Rxc4 Rxc4 48. Rxc4 Nxc4) 45. cxb5 {[%emt 0:00:07]} Rxc3 {[%emt 0:00:06]} 46. Rxc3 {[%emt 0:00:05]} Bd7 {[%emt 0:00:19]} 47. Rc6+ {[%emt 0:01:15]} Ke7 {[%emt 0:00:11]} 48. d6+ {[%emt 0:00:18]} Kd8 {[%emt 0:00:15]} 1/2-1/2

[Event "FIDE WCCC U10 2018"]
[Site "Santiago de Compostela"]
[Date "2018.11.11"]
[Round "7"]
[White "Mardov, Dimitar"]
[Black "Dang, Anh Minh"]
[Result "0-1"]
[ECO "B32"]
[WhiteElo "1985"]
[BlackElo "1817"]
[Annotator "NA RC"]
[PlyCount "112"]
[EventDate "2018.11.04"]
[EventType "swiss"]
[EventCountry "ESP"]
[SourceTitle "playchess.com"]
[Source "ChessBase"]
[SourceQuality "1"]
[TimeControl "40/5400+30:1800+30"]

{[%evp 8,112,47,38,32767,32767,32767,35,32767,32767,32767,32767,32767,32767,45,22,27,0,-2,0,14,-10,-12,-16,-16,-8,-4,32767,-17,32767,-18,-23,32767,32767,32767,0,14,0,-3,0,0,32767,32767,48,42,32767,32767,37,32767,32767,32767,0,97,32767,32767,17,32767,32767,32767,16,32767,-61,32767,32767,32767,32767,-100,-119,-141,-145,-151,-135,-122,-126,32767,-106,-152,-130,-174,-225,32767,-198,-262,-511,-494,-567,-74,-83,-127,-147,-110,-103,-161,-29974,-6437,-6079,32767,-29982,-29980,-29967,-29983,-29980,-29984,-29987,-29988,-29988,-12847]} 1. e4 c5 2. Nf3 Nc6 3. d4 cxd4 4. Nxd4 Qb6 5. Nb3 Nf6 6. Nc3 e6 7. Bd3 a6 8. O-O Be7 9. Be3 Qc7 10. f4 d6 11. a4 b6 12. Qe2 {LiveBook: 14 Games} O-O {B33: Sicilian: Pelikan and Sveshnikov Variations} 13. h3 {[%emt 0:22:57]} (13. g4 Re8 14. g5 Nd7 15. Rf3 Nb4 16. Qd2 Bb7 17. Nd4 g6 18. Nce2 Nxd3 19. cxd3 Rac8 20. Rc1 {½-½ (34) Antipov,M (2433)-Papin,V (2570) Voronezh 2012}) 13... Bb7 14. Rae1 Nb4 $146 {[%emt 1:37:00]} ({Predecessor:} 14... Nd7 15. Nd1 Nb4 16. Nf2 Bh4 17. Ra1 Rac8 {½-½ (17) Jamrich,G (2310)-Brustkern,J (2255) Budapest 1998}) 15. Nd4 Nd7 16. f5 e5 17. Nb3 d5 18. exd5 Nxd5 19. Nxd5 Bxd5 20. Nd2 a5 21. c3 f6 22. Bb5 Rfd8 23. Rd1 Bc5 24. Nc4 Bxe3+ 25. Nxe3 Bb3 26. Bc4+ Bxc4 27. Qxc4+ Qxc4 28. Nxc4 Rab8 29. Rd6 Rdc8 (29... Nc5 $11) 30. Rxd7 Rxc4 31. Rfd1 h5 32. Re7 Kh7 33. Rdd7 Rg8 34. Re6 (34. Rd6 $11 Kh8 35. Rxb6) 34... Kh6 35. Rxb6 Rxa4 36. Rb5 Kg5 37. Rbb7 Kxf5 38. Rxg7 Rxg7 39. Rxg7 Ra1+ 40. Kf2 Ra2 41. Rb7 Ke4 42. Ke2 {[#]} h4 $1 43. Rb6 f5 44. Rb7 Kf4 45. Kd2 e4 46. c4 Kg3 $2 (46... Ra1 $19 {has better winning chances.} 47. c5 e3+ 48. Ke2 Rg1) 47. c5 Kf2 48. c6 e3+ 49. Kc2 e2 50. c7 $2 (50. Re7 $17 Ra4 51. b4 (51. Kd2 $2 Re4 $19) 51... axb4 52. c7) 50... e1=Q 51. c8=Q Qe4+ 52. Kc3 Ra1 53. Qc5+ Kxg2 54. Rg7+ Kxh3 55. Kd2 Qe1+ 56. Kd3 Rd1+ 0-1

[Event "FIDE WCCC U10 2018"]
[Site "Santiago de Compostela"]
[Date "2018.11.11"]
[Round "7"]
[White "Volkov, Maksim"]
[Black "Li Yihao"]
[Result "1-0"]
[ECO "A05"]
[WhiteElo "1971"]
[BlackElo "1601"]
[Annotator "NA RC"]
[PlyCount "133"]
[EventDate "2018.11.04"]
[EventType "swiss"]
[EventCountry "ESP"]
[SourceTitle "playchess.com"]
[Source "ChessBase"]
[SourceQuality "1"]
[TimeControl "40/5400+30:1800+30"]

{[%evp 14,124,41,32767,43,32767,32767,32767,32767,-11,32767,71,92,75,54,32767,41,32767,91,104,99,32767,98,32767,109,117,100,102,32767,83,83,79,110,67,71,70,57,32767,106,32767,75,32767,32767,32767,32767,115,32767,104,118,32767,32767,32767,79,43,43,-22,221,258,315,305,32767,318,360,377,356,377,353,380,374,383,384,400,352,413,493,345,391,441,384,32767,32767,32767,32767,32767,316,304,398,410,415,32767,32767,32767,32767,32767,32767,32767,32767,32767,32767,32767,32767,32767,32767,32767,32767,32767,32767,1506,10809,1406,1858,5409,5393]} 1. Nf3 {[%emt 0:00:00]} Nf6 {[%emt 0:00:00]} 2. c4 {[%emt 0:00:00]} g6 {[%emt 0:00:00]} 3. b3 {[%emt 0:00:06]} Bg7 {[%emt 0:00:00]} 4. Bb2 {[%emt 0:00:06]} O-O {[%emt 0:00:28]} 5. g3 {[%emt 0:00:36]} d5 {[%emt 0:00:39]} 6. Bg2 {[%emt 0:00:18]} c5 {[%emt 0:02:13]} 7. O-O {[%emt 0:01:28]} Nc6 {[%emt 0:04:11]} (7... d4 $11) 8. cxd5 {[%emt 0:05:19]} Nxd5 {[%emt 0:03:45] LiveBook: 89 Games} 9. Bxg7 {[%emt 0:00:17]} Kxg7 {[%emt 0:00:12]} 10. Qc1 {[%emt 0:00:10]} Qd6 {[%emt 0:00:30]} 11. Na3 {[%emt 0:00:39] A05: Übergänge in verschiedene Eröffnungen} (11. Nc3 Nxc3 12. dxc3 Rd8 13. Ng5 Bf5 14. e4 Bg4 15. f3 Bd7 16. f4 f6 17. e5 Qc7 18. Ne4 b6 19. exf6+ exf6 {1-0 (41) Bukavshin,I (2618)-Eliseev,U (2514) Loo 2015}) 11... e5 $146 {[%emt 0:24:10]} ({Vorgänger:} 11... b6 12. Nc4 Qd7 13. Qb2+ f6 14. d4 cxd4 15. Nxd4 Bb7 16. Rad1 Nxd4 17. Qxd4 Qb5 18. Bxd5 Rad8 19. Ne3 {1-0 (19) Naroditsky,D (2479)-Videnova,I (2313) Golden Sands 2012}) 12. Nc4 {[%emt 0:05:16]} Qe6 {[%emt 0:01:18]} 13. Ng5 {[%emt 0:02:53]} Qd7 {[%emt 0:02:14]} 14. Ne4 {[%emt 0:04:11]} Qe7 {[%emt 0:13:42]} 15. Ne3 {[%emt 0:07:35]} Nxe3 {[%emt 0:07:03]} 16. dxe3 {[%emt 0:03:02]} Bg4 {[%emt 0:01:56]} 17. Qxc5 {[%emt 0:13:35]} Bxe2 {[%emt 0:07:37]} 18. Rfe1 {[%emt 0:00:22]} Bg4 {[%emt 0:02:46]} 19. Qxe7 {[%emt 0:02:12]} Nxe7 {[%emt 0:00:02]} 20. Nd6 {[%emt 0:00:44]} Rad8 {[%emt 0:00:31]} 21. Nc4 {[%emt 0:01:23]} f6 {[%emt 0:03:47]} 22. Bxb7 {[%emt 0:02:56]} Nd5 {[%emt 0:01:28]} 23. Kg2 {[%emt 0:03:39]} e4 {[%emt 0:06:33]} 24. a3 {[%emt 0:09:47]} Bf3+ {[%emt 0:01:15]} 25. Kf1 {[%emt 0:00:07]} Nb6 {[%emt 0:00:52]} 26. Rac1 {[%emt 0:05:01]} Rd3 {[%emt 0:01:27]} 27. Na5 {[%emt 0:02:38]} Rfd8 {[%emt 0:03:08]} 28. Ba6 {[%emt 0:01:31]} Rd2 {[%emt 0:00:24] [#]} 29. Nc6 $1 {[%emt 0:01:26]} R8d6 {[%emt 0:01:08]} 30. Nd4 {[%emt 0:01:51]} Nd7 {[%emt 0:00:21]} 31. Be2 {[%emt 0:01:14]} Ne5 {[%emt 0:00:31]} 32. Rc7+ {[%emt 0:01:19]} Kh6 {[%emt 0:02:29] [#]} 33. Rxa7 {[%emt 0:03:54]} ({White should play} 33. h3 $1 $16) 33... Ng4 {[%emt 0:05:05]} 34. h3 {[%emt 0:01:36]} Ne5 $2 {[%emt 0:01:30]} (34... Bxe2+ $11 {and Black has nothing to worry.} 35. Rxe2 (35. Nxe2 $2 Nh2+ 36. Kg2 Nf3 $19) 35... Nh2+ 36. Kg1 (36. Ke1 {leads to mate.} Nf3+ 37. Kf1 Rd1+ 38. Re1 Rxe1+ 39. Kg2 Rg1#) 36... R6xd4 37. Kxh2 Rxe2 38. exd4 Rxf2+ 39. Kh1 Rf3) 35. a4 {[%emt 0:01:43]} Rd8 {[%emt 0:00:49]} 36. Ra6 {[%emt 0:02:22]} Rc8 {[%emt 0:01:08]} 37. Rxf6 {[%emt 0:01:49]} Bxe2+ {[%emt 0:01:38]} 38. Rxe2 {[%emt 0:01:01]} Rc1+ {[%emt 0:00:09] [#]} 39. Re1 $1 {[%emt 0:00:17]} Rxe1+ {[%emt 0:00:14]} 40. Kxe1 {[%emt 0:00:00]} Rb2 {[%emt 0:00:00]} 41. Kf1 {[%emt 0:02:13]} Nd3 {[%emt 0:03:30]} 42. g4 {[%emt 0:04:34]} Kg5 {[%emt 0:01:40]} 43. Rf7 {[%emt 0:00:59]} h5 {[%emt 0:00:33]} 44. gxh5 {[%emt 0:01:59]} Kxh5 {[%emt 0:01:47]} 45. Kg2 {[%emt 0:01:52]} g5 {[%emt 0:01:42]} 46. Rf6 {[%emt 0:01:11]} g4 {[%emt 0:02:39]} 47. hxg4+ {[%emt 0:01:14]} Kxg4 {[%emt 0:00:10]} 48. Rf8 {[%emt 0:05:12]} Ne1+ {[%emt 0:01:14]} 49. Kg1 {[%emt 0:01:35]} Rb1 {[%emt 0:02:18]} 50. Kh2 {[%emt 0:00:23]} Nd3 {[%emt 0:00:12]} 51. f3+ {[%emt 0:02:07]} exf3 {[%emt 0:00:13]} 52. Rxf3 {[%emt 0:00:18]} Rb2+ {[%emt 0:01:12]} 53. Kg1 {[%emt 0:01:04]} Rxb3 {[%emt 0:01:55]} 54. Rf4+ {[%emt 0:00:16]} Nxf4 {[%emt 0:00:11]} 55. Nxb3 {[%emt 0:00:10]} Nd5 {[%emt 0:00:55]} 56. Kf2 {[%emt 0:00:10]} Kf5 {[%emt 0:00:15]} 57. Kf3 {[%emt 0:00:11]} Ke5 {[%emt 0:00:33]} 58. a5 {[%emt 0:03:13]} Nc7 {[%emt 0:00:29]} 59. e4 {[%emt 0:00:23]} Na6 {[%emt 0:00:56]} 60. Ke3 {[%emt 0:02:14]} Nc7 {[%emt 0:00:36]} 61. Nd4 $18 {[%emt 0:00:25]} (61. Kd3 $142 Na6 62. Kc4) 61... Na6 {[%emt 0:01:41]} 62. Nf3+ {[%emt 0:00:40]} Ke6 {[%emt 0:00:12]} 63. Kd4 {[%emt 0:00:14]} Nb8 {[%emt 0:00:22]} 64. Kc5 {[%emt 0:00:43]} Na6+ {[%emt 0:00:17]} 65. Kb6 {[%emt 0:00:31]} Nb8 {[%emt 0:00:22]} 66. a6 {[%emt 0:00:21]} Nd7+ {[%emt 0:00:06]} 67. Kc7 {[%emt 0:00:13]} 1-0

[Event "FIDE WCCC U10 2018"]
[Site "Santiago de Compostela"]
[Date "2018.11.11"]
[Round "7"]
[White "Zhao, Erick"]
[Black "Erten, Kerem"]
[Result "1-0"]
[ECO "B00"]
[WhiteElo "1957"]
[BlackElo "1807"]
[Annotator "NA RC"]
[PlyCount "103"]
[EventDate "2018.11.04"]
[EventType "swiss"]
[EventCountry "ESP"]
[SourceTitle "playchess.com"]
[Source "ChessBase"]
[SourceQuality "1"]
[TimeControl "40/5400+30:1800+30"]

1. e4 {[%emt 0:00:00]} d6 {[%emt 0:00:00]} 2. d4 {[%emt 0:00:11]} g6 {[%emt 0:00:00]} 3. h3 {[%emt 0:05:09]} Bg7 {[%emt 0:00:21]} 4. Nf3 {[%emt 0:00:35]} a6 {[%emt 0:00:07]} 5. a4 {[%emt 0:01:54] B06: Modern Defence} b6 {[%emt 0:00:31]} (5... Nf6 6. Nc3 O-O 7. Be2 Nc6 8. O-O Nd7 9. Be3 e5 10. Qd2 exd4 11. Nxd4 Re8 12. Bc4 Nde5 {1-0 (35) Quparadze,G (2499)-Benidze,D (2501) Tbilisi 2018}) 6. Be3 {[%emt 0:01:43]} Bb7 {[%emt 0:00:35]} 7. Nc3 {[%emt 0:02:06]} Nd7 {[%emt 0:01:05]} 8. Bc4 {[%emt 0:05:46]} e6 {[%emt 0:01:01] LiveBook: 5 Games} 9. Bb3 {[%emt 0:17:14]} Ne7 {[%emt 0:06:48]} 10. O-O {[%emt 0:00:35]} O-O {[%emt 0:00:19]} 11. Re1 {[%emt 0:01:12]} Nf6 $146 {[%emt 0:03:48]} ({Predecessor:} 11... Rc8 12. Qd2 c5 13. dxc5 Nxc5 14. Bxc5 Rxc5 {½-½ (38) Underwood,J (1532)-Ziskins,I (1601) Kouty nad Desnou 2014}) 12. Bf4 {[%emt 0:02:16]} c5 {[%emt 0:06:02]} 13. dxc5 {[%emt 0:07:44]} d5 {[%emt 0:03:28]} 14. e5 {[%emt 0:06:44]} Nd7 {[%emt 0:00:21]} 15. cxb6 {[%emt 0:00:30]} Qxb6 {[%emt 0:00:25]} 16. Nd4 {[%emt 0:03:52]} h6 {[%emt 0:01:35]} 17. h4 {[%emt 0:05:42]} Nc6 {[%emt 0:04:45]} 18. Nxc6 {[%emt 0:00:48]} Bxc6 {[%emt 0:00:10]} 19. Be3 {[%emt 0:01:26]} Qd8 {[%emt 0:00:22]} 20. f4 {[%emt 0:02:01]} Qxh4 {[%emt 0:00:37]} 21. Ne2 $11 {[%emt 0:01:45]} Rad8 {[%emt 0:16:44]} 22. Nd4 {[%emt 0:00:30]} Bb7 {[%emt 0:00:30]} 23. Qd2 {[%emt 0:00:30]} Qe7 {[%emt 0:00:30]} 24. Qf2 {[%emt 0:00:30]} Rc8 {[%emt 0:00:30]} 25. Nf3 {[%emt 0:00:30]} Rc7 {[%emt 0:00:30]} 26. c3 {[%emt 0:00:30]} Rfc8 {[%emt 0:00:30]} 27. Bc2 {[%emt 0:00:30]} h5 {[%emt 0:00:30]} 28. Bd4 {[%emt 0:00:30]} a5 {[%emt 0:00:30]} 29. Ng5 {[%emt 0:00:30]} Ba6 {[%emt 0:00:30]} 30. Rab1 {[%emt 0:00:30]} Rb7 {[%emt 0:00:30]} 31. b3 {[%emt 0:00:30]} Rcb8 {[%emt 0:00:30]} 32. g3 {[%emt 0:00:30]} Bf8 {[%emt 0:00:30]} 33. Qd2 {[%emt 0:00:30]} Bh6 {[%emt 0:00:30]} 34. Nf3 {[%emt 0:00:30]} Qd8 {[%emt 0:00:30]} 35. b4 {[%emt 0:00:30]} Bc4 {[%emt 0:00:30]} 36. b5 {[%emt 0:00:30]} Bf8 {[%emt 0:00:30]} 37. Kg2 {[%emt 0:00:30]} Bc5 {[%emt 0:00:30]} 38. Bxc5 {[%emt 0:00:30]} Nxc5 {[%emt 0:00:30]} 39. Nd4 {[%emt 0:00:30]} Ne4 {[%emt 0:00:30]} 40. Qe3 {[%emt 0:00:30]} Qf8 {[%emt 0:00:30]} 41. Nc6 {[%emt 0:30:30]} Ra8 {[%emt 0:30:30]} 42. Qd4 {[%emt 0:00:30]} Nc5 {[%emt 0:00:30]} 43. Rh1 {[%emt 0:00:30]} Nd7 {[%emt 0:00:30]} 44. g4 {[%emt 0:00:30]} hxg4 {[%emt 0:00:30]} 45. Rh4 {[%emt 0:00:30]} Be2 {[%emt 0:00:30]} 46. Bd1 {[%emt 0:00:30]} Bxd1 47. Rxd1 Nb8 {[%emt 0:01:00]} 48. Rdh1 {[%emt 0:03:20]} Qg7 {[%emt 0:00:12]} 49. Nd8 {[%emt 0:03:26]} Re7 {[%emt 0:04:34]} 50. Qc5 {[%emt 0:02:51]} Re8 {[%emt 0:11:35]} 51. Qc7 {[%emt 0:02:13]} Na6 {[%emt 0:05:12]} 52. Rh8+ {[%emt 0:00:22]} 1-0

[Event "FIDE WCCC U10 2018"]
[Site "Santiago de Compostela"]
[Date "2018.11.11"]
[Round "7"]
[White "Cherniaiev, Tykhon"]
[Black "Wilson, Ronen"]
[Result "1/2-1/2"]
[ECO "B90"]
[WhiteElo "1940"]
[BlackElo "1761"]
[Annotator "NA RC"]
[PlyCount "159"]
[EventDate "2018.11.04"]
[EventType "swiss"]
[EventCountry "ESP"]
[SourceTitle "playchess.com"]
[Source "ChessBase"]
[SourceQuality "1"]
[TimeControl "40/5400+30:1800+30"]

1. e4 {[%emt 0:00:00]} c5 {[%emt 0:00:00]} 2. Nf3 {[%emt 0:00:00]} d6 {[%emt 0:00:00]} 3. d4 {[%emt 0:00:00]} cxd4 {[%emt 0:00:00]} 4. Nxd4 {[%emt 0:00:00]} Nf6 {[%emt 0:00:14]} 5. Nc3 {[%emt 0:00:00]} a6 {[%emt 0:00:15]} 6. Be3 {[%emt 0:00:08] LiveBook: 18959 Games} Ng4 {[%emt 0:00:44]} 7. Bg5 {[%emt 0:00:19]} h6 {[%emt 0:00:21]} 8. Bh4 {[%emt 0:00:13]} g5 {[%emt 0:00:30]} 9. Bg3 {[%emt 0:00:09]} Bg7 {[%emt 0:00:24]} 10. Qd2 {[%emt 0:00:21]} Nc6 {[%emt 0:00:46]} 11. Nb3 {[%emt 0:00:09]} b5 {[%emt 0:00:44]} 12. a3 {[%emt 0:06:57] B90: Sicilian Najdorf: Unusual White 6th moves, 6 Be3 Ng4 and 6 Be3 e5} ({Lieber} 12. h4 $14 gxh4 13. Bxh4 Nge5 14. Nd5 Nc4 15. Bxc4 bxc4 16. Nc1 Be6 17. Ne2 Rb8 18. Rb1 Bxd5 19. exd5 Ne5 {½-½ (43) Giri,A (2755)-Gelfand,B (2743) Moscow 2016}) 12... Nge5 $146 {[%emt 0:05:36]} ({Predecessor:} 12... Be6 13. h4 gxh4 14. Rxh4 Rc8 15. f4 Bf6 16. Rh1 Qb6 17. Be2 Qe3 18. Qxe3 Nxe3 19. Kd2 Nc4+ 20. Bxc4 Bxc4 {0-1 (37) Kluenter,W-Breuer,M Cologne 1995}) 13. Rb1 {[%emt 0:14:16]} Be6 {[%emt 0:12:54]} 14. Nd5 {[%emt 0:05:01]} Rb8 {[%emt 0:11:12]} 15. Be2 {[%emt 0:04:57]} Nc4 {[%emt 0:06:07]} 16. Qc1 {[%emt 0:02:30]} Bxd5 {[%emt 0:06:58]} 17. exd5 {[%emt 0:00:08]} N6e5 {[%emt 0:01:32]} 18. O-O {[%emt 0:02:48]} Na5 {[%emt 0:06:18]} 19. Nd4 $16 {[%emt 0:02:42]} Qc8 {[%emt 0:16:49]} 20. c3 {[%emt 0:00:30]} Nec4 {[%emt 0:00:30]} 21. Qd1 {[%emt 0:00:30]} Bxd4 {[%emt 0:00:30]} 22. Qxd4 {[%emt 0:00:30]} O-O {[%emt 0:00:30]} 23. Qd1 {[%emt 0:00:30]} f5 {[%emt 0:00:30]} 24. h3 {[%emt 0:00:30]} f4 {[%emt 0:00:30]} 25. Bg4 {[%emt 0:00:30]} Qe8 {[%emt 0:00:30]} 26. Bh2 {[%emt 0:00:30]} Ne5 {[%emt 0:00:30]} 27. Be6+ {[%emt 0:00:30]} Kg7 {[%emt 0:00:30]} 28. Kh1 {[%emt 0:00:30]} Qg6 {[%emt 0:00:30]} 29. f3 {[%emt 0:00:30]} Nac4 {[%emt 0:00:30]} 30. Bg1 {[%emt 0:00:30]} a5 {[%emt 0:00:30]} 31. Bd4 {[%emt 0:00:30]} a4 {[%emt 0:00:30]} 32. Re1 {[%emt 0:00:30]} Kh7 {[%emt 0:00:30]} 33. Re4 {[%emt 0:00:30]} h5 {[%emt 0:00:30]} 34. Qe2 {[%emt 0:00:30]} Rh8 {[%emt 0:00:30]} 35. Rf1 {[%emt 0:00:30]} Rbf8 {[%emt 0:00:30]} 36. Kg1 {[%emt 0:00:30]} Rf6 {[%emt 0:00:30]} 37. Bf2 {[%emt 0:00:30]} Kg7 {[%emt 0:00:30]} 38. Bd4 {[%emt 0:00:30]} Kh7 {[%emt 0:00:30]} 39. Re1 {[%emt 0:00:30]} Kg7 {[%emt 0:00:30]} 40. Kh1 {[%emt 0:00:30]} Kf8 41. Bxe5 dxe5 {[%emt 0:31:00]} 42. Bd7 {[%emt 0:44:51]} g4 {[%emt 0:15:56]} 43. fxg4 {[%emt 0:05:23]} Ne3 {[%emt 0:02:20]} 44. Rxe3 {[%emt 0:03:36]} fxe3 {[%emt 0:00:50]} 45. Qxe3 {[%emt 0:00:11]} hxg4 {[%emt 0:07:32]} 46. Qxe5 {[%emt 0:00:12]} Qf7 {[%emt 0:00:43]} 47. Bxg4 {[%emt 0:01:54]} Rf1+ {[%emt 0:01:29]} 48. Rxf1 {[%emt 0:00:57]} Qxf1+ {[%emt 0:00:13]} 49. Kh2 {[%emt 0:00:10]} Qf6 {[%emt 0:00:33]} 50. Qxf6+ {[%emt 0:02:56]} exf6 {[%emt 0:00:13]} 51. Bd7 {[%emt 0:00:06]} Rh5 {[%emt 0:01:50]} 52. Bxb5 {[%emt 0:01:42]} Rxd5 {[%emt 0:00:17]} 53. Bxa4 {[%emt 0:00:03]} Rd2 {[%emt 0:00:22]} 54. b3 {[%emt 0:00:26]} Ra2 {[%emt 0:00:26]} 55. c4 {[%emt 0:00:06]} Rxa3 {[%emt 0:00:32]} 56. c5 {[%emt 0:00:13]} Ke7 {[%emt 0:00:32]} 57. c6 {[%emt 0:00:12]} Kd6 {[%emt 0:00:19]} 58. h4 {[%emt 0:00:10]} Ra2 {[%emt 0:00:33]} 59. h5 {[%emt 0:00:33]} Re2 {[%emt 0:00:23]} 60. Kh3 {[%emt 0:00:50]} f5 {[%emt 0:01:20]} 61. b4 {[%emt 0:01:10]} Re4 {[%emt 0:00:37]} 62. Bc2 {[%emt 0:01:20]} Rxb4 {[%emt 0:00:18]} 63. Bxf5 {[%emt 0:01:09]} Kxc6 {[%emt 0:00:42]} 64. g4 {[%emt 0:00:12]} Kd6 {[%emt 0:00:25]} 65. Kh4 {[%emt 0:00:03]} Ke7 {[%emt 0:00:45]} 66. h6 {[%emt 0:00:29]} Kf7 {[%emt 0:00:31]} 67. Bh7 {[%emt 0:00:09]} Kf6 {[%emt 0:00:36]} 68. Kh5 {[%emt 0:00:36]} Rb5+ {[%emt 0:00:19]} 69. Kh4 {[%emt 0:01:39]} Rb4 {[%emt 0:00:34]} 70. Kh5 {[%emt 0:00:20]} Rb5+ {[%emt 0:00:17]} 71. Bf5 {[%emt 0:00:07]} Ra5 {[%emt 0:01:00]} 72. Kh4 {[%emt 0:02:31]} Kf7 {[%emt 0:00:14]} 73. Bd3 {[%emt 0:00:38]} Kg8 {[%emt 0:00:22]} 74. g5 {[%emt 0:00:16]} Rxg5 {[%emt 0:00:56]} 75. Kxg5 {[%emt 0:00:07]} Kh8 {[%emt 0:00:08]} 76. Kg6 {[%emt 0:00:11]} Kg8 {[%emt 0:00:10]} 77. Bc4+ {[%emt 0:00:11]} Kh8 {[%emt 0:00:08]} 78. Bf1 {[%emt 0:00:20]} Kg8 {[%emt 0:00:11]} 79. Bg2 {[%emt 0:00:24]} Kh8 {[%emt 0:00:11]} 80. h7 {[%emt 0:00:23]} 1/2-1/2

[Event "FIDE WCCC U10 2018"]
[Site "Santiago de Compostela"]
[Date "2018.11.11"]
[Round "7"]
[White "Jin Yueheng"]
[Black "Hardaway, Brewington"]
[Result "1-0"]
[ECO "E73"]
[WhiteElo "1914"]
[BlackElo "1533"]
[Annotator "NA RC"]
[PlyCount "42"]
[EventDate "2018.11.04"]
[EventType "swiss"]
[EventCountry "ESP"]
[SourceTitle "playchess.com"]
[Source "ChessBase"]
[SourceQuality "1"]
[TimeControl "40/5400+30:1800+30"]

{[%evp 10,42,50,33,32767,27,82,49,63,63,61,62,48,48,42,32767,106,70,32767,32767,87,32767,32767,32767,51,32767,49,32767,9,32767,32767,-4,0,0,7]} 1. d4 {[%emt 0:00:00]} Nf6 {[%emt 0:00:00]} 2. c4 {[%emt 0:00:00]} g6 {[%emt 0:00:03]} 3. Nc3 {[%emt 0:00:00]} Bg7 {[%emt 0:00:14]} 4. e4 {[%emt 0:00:00]} d6 {[%emt 0:00:13]} 5. Be2 {[%emt 0:00:00]} O-O {[%emt 0:00:14]} 6. Bg5 {[%emt 0:00:00]} Nbd7 {[%emt 0:06:17]} 7. Qd2 {[%emt 0:01:21]} c5 {[%emt 0:04:18]} 8. d5 {[%emt 0:00:35]} b5 {[%emt 0:10:29]} 9. cxb5 {[%emt 0:00:38]} a6 {[%emt 0:00:18]} 10. Nf3 {[%emt 0:02:44] LiveBook: 18 Games E74: King's Indian: Averbakh Variation: 6...c5} axb5 {[%emt 0:06:02]} 11. Bxb5 {[%emt 0:00:16]} Qb6 {[%emt 0:02:56]} 12. O-O {[%emt 0:11:37]} Ba6 {[%emt 0:02:13]} 13. Bxa6 {[%emt 0:01:21]} Qxa6 {[%emt 0:01:13]} 14. Bh6 {[%emt 0:07:46]} c4 $146 {[%emt 0:04:25]} ({Predecessor:} 14... Bxh6 15. Qxh6 Rfb8 16. Rab1 Rb4 17. Rfe1 Rab8 18. Qd2 Ng4 19. h3 Nge5 20. Nxe5 Nxe5 {1-0 (50) Chirila,I (2542)-Griffith,K (2303) Chicago 2015}) 15. Bxg7 {[%emt 0:00:09]} Kxg7 {[%emt 0:04:35]} 16. Qc2 {[%emt 0:00:50]} Nc5 {[%emt 0:01:10]} 17. Nd2 {[%emt 0:00:28]} Rfc8 {[%emt 0:02:31]} 18. Rfd1 {[%emt 0:04:38]} Ng4 {[%emt 0:04:42]} 19. h3 {[%emt 0:04:39]} Ne5 {[%emt 0:00:16]} 20. Nf1 {[%emt 0:06:35]} Ncd3 {[%emt 0:02:46]} 21. Ne3 {[%emt 0:02:31]} Qb6 $11 {[%emt 0:00:59]} 1-0